bitfinex/quotes_SOLUSD_20250721
["timestamp","ask_amount","ask_price","bid_price","bid_amount"]
[1753101616353,37.74,191.01,191.0,0.03]
[1753101616551,43.66054463,191.01,191.0,0.03]
[1753101616753,42.94054463,191.01,191.0,0.03]
[1753101617051,37.02,191.01,191.0,0.03]
[1753101617255,89.8,191.03,191.0,0.72]
[1753101617463,37.0,191.02,191.0,0.72]
[1753101617651,37.0,191.02,191.01,0.69]
[1753101618036,37.0,191.02,191.0,0.03]
[1753101618343,37.0,191.02,191.0,0.72]
[1753101620271,37.0,191.02,191.0,0.03]
[1753101620446,43.64054463,191.02,191.0,0.03]
[1753101622249,0.06,191.05,191.01,6.61054463]
[1753101622571,37.0,191.04,191.02,0.69]
[1753101622870,37.0,191.04,191.0,0.03]
[1753101622871,37.0,191.04,191.03,6.61054463]
[1753101623050,0.06,191.05,191.03,6.61054463]
[1753101623252,0.06,191.05,191.04,6.61054463]
[1753101624370,0.06,191.05,191.04,11.84505049]
[1753101626176,0.06,191.05,191.04,5.92450586]
[1753101626366,0.06,191.05,191.04,11.84505049]
[1753101630278,0.06,191.06,191.04,11.84505049]
[1753101630454,0.06,191.06,191.04,11.15505049]
[1753101630655,0.06,191.06,191.05,32.61054463]
[1753101630880,0.06,191.06,191.05,6.61054463]
[1753101632364,0.06,191.06,191.05,11.8447765]
[1753101635475,0.06,191.06,191.05,5.92423187]
[1753101635675,0.06,191.06,191.05,11.8447765]
[1753101636872,0.06,191.06,191.01,11.15587262]
[1753101637178,0.71,191.05,191.0,11.8860822]
[1753101637382,5.92054463,191.03,191.0,0.03]
[1753101637584,5.92054463,191.02,191.0,0.03]
[1753101637758,6.63054463,191.02,191.0,0.03]
[1753101637960,0.71,191.01,191.0,0.03]
[1753101638564,5.92054463,191.02,191.0,0.03]
[1753101638976,6.63054463,191.01,191.0,0.03]
[1753101639156,23.4152286,191.01,191.0,0.03]
[1753101639361,16.78468397,190.98,190.96,0.03]
[1753101639557,42.88054463,190.97,190.96,0.03]
[1753101639976,43.59054463,190.97,190.96,0.03]
[1753101640569,42.88054463,190.97,190.96,0.03]
[1753101641304,1.5037,190.99,190.96,0.03]
[1753101641456,36.96,190.97,190.96,0.03]
[1753101642393,36.96,190.97,190.96,0.73]
[1753101643073,37.96,190.97,190.96,0.73]
[1753101643985,37.96,190.97,190.96,5.96669878]
[1753101644185,37.96,190.97,190.96,0.03]
[1753101644388,44.59054463,190.97,190.96,0.03]
[1753101644684,49.82696919,190.97,190.96,0.03]
[1753101645975,44.59054463,190.97,190.96,0.03]
[1753101646301,66.61165316,190.97,190.96,0.03]
[1753101648673,55.45468397,190.97,190.96,0.03]
[1753101648980,43.90054463,190.97,190.96,0.03]
[1753101649176,44.61054463,190.97,190.96,0.03]
[1753101649388,37.98,190.97,190.96,0.03]
[1753101652564,37.98,190.97,190.96,0.73]
[1753101654670,37.98,190.97,190.96,5.96669878]
[1753101655775,37.98,190.97,190.96,0.73]
[1753101655981,37.98,190.97,190.96,5.96669878]
[1753101656692,37.98,190.97,190.96,11.88724341]
[1753101656896,37.98,190.97,190.96,5.96669878]
[1753101657087,37.98,190.97,190.96,11.88724341]
[1753101657473,37.98,190.97,190.96,5.96669878]
[1753101657669,37.98,190.97,190.96,11.88724341]
[1753101658902,37.98,190.97,190.96,5.96669878]
[1753101659708,37.98,190.97,190.96,11.88724341]
[1753101660973,1.0,190.97,190.96,11.88724341]
[1753101672906,1.0,190.97,190.96,5.96669878]
[1753101673090,1.0,190.97,190.96,11.88724341]
[1753101677896,1.0,190.97,190.96,5.96669878]
[1753101678098,1.0,190.97,190.96,11.88724341]
[1753101698497,0.06,191.0,190.99,26.0]
[1753101698699,0.06,191.0,190.99,68.84054463]
[1753101698899,0.06,191.0,190.99,69.55054463]
[1753101700422,0.06,191.0,190.99,74.78642085]
[1753101700620,1e-08,191.0,190.99,80.70696548]
[1753101702331,1e-08,191.0,190.99,74.78642085]
[1753101702832,1e-08,191.0,190.99,80.70696548]
[1753101703019,1e-08,191.0,190.99,74.78642085]
[1753101704239,1e-08,191.0,190.99,80.70696548]
[1753101706432,1e-08,191.0,190.99,74.78642085]
[1753101708928,1e-08,191.0,190.99,31.23587622]
[1753101709118,1e-08,191.0,190.99,80.66696548]
[1753101709321,1e-08,191.0,190.99,97.45164945]
[1753101709836,0.06,191.04,191.03,26.0]
[1753101710025,0.06,191.04,191.03,68.80054463]
[1753101710628,0.06,191.04,191.03,74.0353245]
[1753101710936,0.06,191.04,191.03,74.7453245]
[1753101711122,0.75,191.04,191.03,37.1553245]
[1753101711322,0.75,191.04,190.97,0.71]
[1753101711526,6.67054463,191.04,190.99,5.92054463]
[1753101711738,0.06,191.04,190.99,31.92054463]
[1753101712036,0.69,191.03,190.99,31.92054463]
[1753101712439,0.69,191.03,190.99,26.0]
[1753101713116,0.69,191.03,191.0,5.23560209]
[1753101713524,5.98054463,191.04,191.0,5.23560209]
[1753101713525,0.69,191.02,191.0,5.23560209]
[1753101713936,5.98054463,191.04,191.0,5.23560209]
[1753101714146,0.69,191.01,191.0,5.23560209]
[1753101716248,0.69,191.01,190.99,31.23578702]
[1753101716426,2.2146,191.01,190.99,26.0]
[1753101716736,0.69,191.0,190.99,31.23581244]
[1753101717344,1.5246,191.01,190.99,31.23581244]
[1753101717524,0.69,191.02,190.99,31.23581244]
[1753101718447,0.69,191.02,190.99,37.15635707]
[1753101718649,0.69,191.02,190.99,31.23581244]
[1753101719040,0.69,191.01,190.99,31.23581244]
[1753101719938,0.69,191.0,190.99,31.23581244]
[1753101720439,0.69,191.0,190.99,31.26581244]
[1753101724237,0.71,191.02,190.99,31.26581244]
[1753101724433,0.06,191.02,190.99,31.26581244]
[1753101724633,0.65,191.01,190.99,31.26581244]
[1753101724833,0.65,191.0,190.99,31.26581244]
[1753101725454,0.71,191.02,190.99,31.26581244]
[1753101725757,0.65,191.01,190.99,31.26581244]
[1753101726141,0.06,191.02,190.99,31.26581244]
[1753101726344,0.65,191.0,190.99,31.26581244]
[1753101728053,0.06,191.02,190.99,31.26581244]
[1753101728446,0.65,191.01,190.99,0.03]
[1753101728651,5.92054463,191.0,190.99,0.03]
[1753101729041,6.57054463,191.0,190.99,0.03]
[1753101729569,0.65,191.0,190.99,0.03]
[1753101729860,0.71,191.02,190.99,5.26587622]
[1753101730030,0.06,191.02,190.99,0.03]
[1753101730231,0.71,191.02,190.99,5.95054463]
[1753101730435,0.71,191.02,190.99,0.03]
[1753101730636,0.65,191.01,190.99,0.03]
[1753101731762,6.57054463,191.01,190.99,0.03]
[1753101732259,6.57054463,191.0,190.99,0.03]
[1753101732472,0.65,191.0,190.99,0.03]
[1753101733442,0.06,191.02,190.99,0.03]
[1753101733660,0.71,191.02,190.99,0.03]
[1753101734036,0.06,191.02,190.99,0.72]
[1753101734242,0.06,191.02,190.99,5.95568858]
[1753101734440,0.71,191.02,190.99,5.26568858]
[1753101735066,0.65,191.01,190.99,5.26568858]
[1753101735464,0.06,191.02,190.99,0.03]
[1753101735765,0.65,191.0,190.99,0.03]
[1753101737265,6.57054463,191.0,190.99,0.03]
[1753101738167,11.80614672,191.0,190.99,0.03]
[1753101740263,6.57054463,191.0,190.99,0.03]
[1753101740446,43.43054463,191.0,190.99,0.03]
[1753101743672,37.51,191.0,190.99,0.03]
[1753101743853,43.49054463,191.0,190.99,0.03]
[1753101745152,48.72614672,191.0,190.99,0.03]
[1753101745661,43.49054463,191.0,190.99,0.03]
[1753101746568,48.72614672,191.0,190.99,0.03]
[1753101748049,65.51083069,191.0,190.99,0.03]
[1753101748648,43.49054463,191.0,190.99,0.03]
[1753101748847,36.92,191.0,190.99,6.64054463]
[1753101749855,36.92,191.0,190.99,0.03]
[1753101750072,37.57,191.0,190.99,0.03]
[1753101750784,48.72614672,191.0,190.99,0.03]
[1753101752181,65.51083069,191.0,190.99,0.03]
[1753101752475,71.43137532,191.0,190.99,0.03]
[1753101752959,72.93357532,191.0,190.99,0.03]
[1753101754682,67.01303069,191.0,190.99,0.03]
[1753101756672,72.93357532,191.0,190.99,0.03]
[1753101758081,16.78468397,190.97,190.96,0.03]
[1753101758274,59.5452286,190.97,190.96,0.03]
[1753101758577,86.2652286,190.97,190.96,0.03]
[1753101759157,80.34468397,190.97,190.96,0.03]
[1753101759391,86.2652286,190.97,190.96,0.03]
[1753101759977,91.50165316,190.97,190.96,0.03]
[1753101764807,22.7052286,190.97,190.96,0.03]
[1753101765085,59.5452286,190.97,190.96,0.03]
[1753101768989,36.84,190.97,190.96,0.7]
[1753101769180,36.84,190.97,190.96,0.03]
[1753101770192,42.76054463,190.97,190.96,0.03]
[1753101771683,36.84,190.97,190.96,0.7]
[1753101773503,36.82,190.97,190.96,0.7]
[1753101773998,36.82,190.97,190.96,0.03]
[1753101777089,36.82,190.97,190.96,0.02999916]
[1753101778315,36.82,190.97,190.96,0.69999916]
[1753101781297,36.82,190.97,190.96,0.02999916]
[1753101781493,43.44054463,190.97,190.96,0.02999916]
[1753101782080,36.82,190.97,190.96,0.02999916]
[1753101782280,42.74054463,190.97,190.96,0.02999916]
[1753101784197,36.82,190.97,190.96,0.02999916]
[1753101785000,36.82,190.97,190.96,0.71999916]
[1753101786996,36.88,190.97,190.96,0.71999916]
[1753101788300,36.88,190.97,190.96,5.95669794]
[1753101789281,0.06,190.97,190.96,5.95669794]
[1753101789489,36.86,190.97,190.96,11.87724257]
[1753101793993,0.06,190.97,190.96,11.87724257]
[1753101795698,36.86,191.0,190.96,11.87724257]
[1753101796003,0.06,191.0,190.99,11.84108926]
[1753101796211,0.06,191.0,190.99,12.53108926]
[1753101796402,0.06,191.0,190.99,6.61054463]
[1753101797101,0.06,191.0,190.99,11.84642085]
[1753101799219,0.06,191.0,190.99,17.76696548]
[1753101803389,0.06,191.0,190.99,11.84642085]
[1753101804319,0.06,191.0,190.99,17.76696548]
[1753101804826,0.06,191.0,190.99,11.84642085]
[1753101805019,0.06,191.0,190.99,17.76696548]
[1753101805226,0.06,191.0,190.99,54.54696548]
[1753101805589,1e-08,191.02,191.01,26.0]
[1753101805930,1e-08,191.02,191.01,31.92054463]
[1753101806224,1e-08,191.02,191.01,37.84587262]
[1753101806792,0.06,191.05,191.01,50.9341926]
[1753101806991,0.06,191.05,191.04,5.92054463]
[1753101807521,1e-08,191.05,191.04,6.61054463]
[1753101808313,1e-08,191.06,191.04,16.0966762]
[1753101808496,1e-08,191.06,191.05,6.61054463]
[1753101809921,1e-08,191.06,191.05,11.8447765]
[1753101811928,0.06,191.08,191.07,26.0]
[1753101812135,0.06,191.08,191.07,74.60108926]
[1753101812341,0.06,191.1,191.08,5.92054463]
[1753101812635,0.06,191.1,191.08,6.63054463]
[1753101812798,0.06,191.1,191.08,5.92054463]
[1753101813003,0.06,191.1,191.08,6.63054463]
[1753101813203,0.06,191.1,191.08,0.71]
[1753101813401,0.06,191.1,191.08,6.63054463]
[1753101813627,0.06,191.1,191.08,11.15395472]
[1753101815001,0.06,191.1,191.08,11.86395472]
[1753101816510,0.06,191.1,191.08,5.23341009]
[1753101816713,0.06,191.1,191.08,11.15395472]
[1753101817312,0.06,191.1,191.08,11.86395472]
[1753101823232,1e-08,191.09,191.08,17.78449935]
[1753101823416,0.1,191.12,191.11,26.0]
[1753101823616,0.1,191.13,191.12,5.92054463]
[1753101823809,0.06,191.14,191.12,6.63054463]
[1753101824005,38.3972,191.23,191.16,26.0]
[1753101824238,38.3972,191.23,191.22,5.92054463]
[1753101824239,39.0972,191.23,191.22,5.92054463]
[1753101824442,2.3572,191.23,191.22,5.92054463]
[1753101824934,1.6572,191.23,191.22,5.92054463]
[1753101825123,0.7,191.25,191.22,5.92054463]
[1753101825431,0.7,191.25,191.23,5.92054463]
[1753101825639,0.1,191.26,191.24,6.63054463]
[1753101825826,0.1,191.26,191.25,31.92054463]
[1753101826362,16.78468397,191.24,191.16,5.23121992]
[1753101826537,0.7,191.23,191.16,11.15176455]
[1753101826743,0.7,191.23,191.17,5.92054463]
[1753101827417,6.62054463,191.23,191.17,5.92054463]
[1753101827618,6.62054463,191.22,191.16,31.92054463]
[1753101827838,6.62054463,191.21,191.16,26.0]
[1753101828139,0.7,191.2,191.13,36.72]
[1753101828336,5.92054463,191.19,191.16,26.0]
[1753101828540,0.7,191.18,191.16,26.0]
[1753101829519,5.23042991,191.19,191.16,26.0]
[1753101829718,0.7,191.17,191.16,26.0]
[1753101830432,6.62054463,191.17,191.14,0.03]
[1753101830633,5.92054463,191.15,191.14,0.03]
[1753101831021,6.62054463,191.15,191.14,0.03]
[1753101831220,23.4052286,191.15,191.14,0.03]
[1753101832515,0.7,191.15,191.14,0.03]
[1753101832845,1.5132,191.16,191.14,0.03]
[1753101833154,16.78468397,191.19,191.15,5.92054463]
[1753101833434,16.78468397,191.19,191.16,5.92054463]
[1753101834418,17.48468397,191.19,191.16,5.92054463]
[1753101834621,0.7,191.18,191.16,5.92054463]
[1753101834823,0.7,191.18,191.15,5.92054463]
[1753101835024,16.78468397,191.19,191.14,0.03]
[1753101835025,0.7,191.17,191.14,5.95054463]
[1753101835233,16.78468397,191.19,191.14,5.95054463]
[1753101835234,16.78468397,191.19,191.14,11.1822529]
[1753101835431,0.7,191.17,191.14,11.1822529]
[1753101836033,17.48468397,191.19,191.14,11.1822529]
[1753101836234,16.78468397,191.19,191.16,5.92054463]
[1753101836458,106.58468397,191.19,191.16,5.92054463]
[1753101837036,89.8,191.19,191.17,5.92054463]
[1753101837750,90.5,191.19,191.16,5.92054463]
[1753101837961,0.7,191.18,191.16,11.15165843]
[1753101838861,89.8,191.19,191.17,5.92054463]
[1753101839258,89.8,191.19,191.16,5.2311138]
[1753101839554,0.7,191.18,191.15,37.15196819]
[1753101839750,89.8,191.19,191.15,37.15196819]
[1753101839936,89.8,191.19,191.16,5.92054463]
[1753101840140,0.7,191.18,191.16,5.92054463]
[1753101840469,0.7,191.18,191.15,31.92054463]
[1753101841655,0.66,191.17,191.15,26.0]
[1753101841850,0.66,191.16,191.15,26.0]
[1753101842158,0.66,191.16,191.14,5.95054463]
[1753101842334,36.7,191.17,191.14,11.18218388]
[1753101842534,36.7,191.17,191.15,5.92054463]
[1753101843451,37.36,191.17,191.14,5.95054463]
[1753101844454,37.36,191.17,191.14,11.18218338]
[1753101844764,37.36,191.17,191.14,5.26163875]
[1753101845944,37.36,191.17,191.14,0.03]
[1753101847140,0.66,191.16,191.14,0.03]
[1753101848758,0.66,191.15,191.14,0.03]
[1753101848949,23.3652286,191.15,191.14,0.03]
[1753101850469,60.0652286,191.15,191.14,0.03]
[1753101850966,23.3652286,191.15,191.14,0.03]
[1753101851344,54.14468397,191.15,191.14,0.03]
[1753101851542,23.3652286,191.15,191.14,0.03]
[1753101851870,60.0652286,191.15,191.14,0.03]
[1753101852044,155.09672219,191.15,191.14,0.03]
[1753101853262,65.29672219,191.15,191.14,0.03]
[1753101855054,22.7052286,191.15,191.14,0.03]
[1753101855255,53.48468397,191.15,191.14,0.03]
[1753101855851,54.14468397,191.15,191.14,0.03]
[1753101856059,65.29672219,191.15,191.14,0.03]
[1753101858861,60.0652286,191.15,191.14,0.03]
[1753101859066,23.3652286,191.15,191.14,0.03]
[1753101859367,54.14468397,191.15,191.14,0.03]
[1753101859576,53.48468397,191.15,191.14,0.03]
[1753101860044,53.48468397,191.15,191.14,0.73]
[1753101860245,53.48468397,191.15,191.14,0.03]
[1753101866373,143.28468397,191.15,191.14,0.03]
[1753101869778,149.8652286,191.15,191.14,0.03]
[1753101870271,143.28468397,191.15,191.14,0.03]
[1753101871573,106.58468397,191.15,191.14,0.03]
[1753101871763,143.26468397,191.15,191.14,0.03]
[1753101876364,89.8,191.15,191.14,6.64054463]
[1753101876565,36.68,191.16,191.14,6.64054463]
[1753101876872,36.68,191.17,191.15,0.69]
[1753101877076,36.68,191.17,191.16,0.69]
[1753101878761,89.86,191.18,191.16,5.92113179]
[1753101878963,89.86,191.18,191.17,6.61054463]
[1753101879483,0.06,191.18,191.17,6.61054463]
[1753101880391,0.06,191.18,191.17,11.8414909]
[1753101883692,36.72,191.18,191.14,5.26151541]
[1753101883892,43.36054463,191.18,191.15,26.0]
[1753101884073,0.72,191.17,191.15,26.0]
[1753101884270,43.30054463,191.16,191.14,0.03]
[1753101884489,22.7052286,191.15,191.14,0.03]
[1753101884668,23.4252286,191.15,191.14,0.03]
[1753101886380,28.65672219,191.15,191.14,0.03]
[1753101888886,118.45672219,191.15,191.14,0.03]
[1753101889193,28.65672219,191.15,191.14,0.03]
[1753101890889,22.73617756,191.15,191.14,0.03]
[1753101891088,65.31672219,191.15,191.14,0.03]
[1753101893929,28.65672219,191.15,191.14,0.03]
[1753101894080,65.33672219,191.15,191.14,0.03]
[1753101895196,65.39672219,191.15,191.14,0.03]
[1753101898799,42.78468397,191.11,191.1,0.03]
[1753101899108,85.3852286,191.11,191.1,0.03]
[1753101899291,48.7052286,191.11,191.1,0.03]
[1753101899486,149.8,191.14,191.1,0.72]
[1753101899798,31.98054463,191.15,191.1,6.64054463]
[1753101900001,5.92054463,191.11,191.1,0.03]
[1753101900202,36.68,191.11,191.1,0.72]
[1753101900380,53.46468397,191.11,191.1,0.03]
[1753101901391,53.46468397,191.11,191.1,0.71]
[1753101902494,5.92054463,191.14,191.1,0.71]
[1753101902695,16.84468397,191.15,191.1,6.63054463]
[1753101902899,36.68,191.14,191.11,0.68]
[1753101903211,42.60054463,191.14,191.11,0.68]
[1753101903512,16.78468397,191.13,191.1,0.03]
[1753101903704,36.68,191.12,191.1,0.03]
[1753101903883,36.68,191.12,191.1,0.71]
[1753101904396,36.68,191.12,191.11,0.68]
[1753101904600,53.46468397,191.12,191.1,0.03]
[1753101904795,53.46468397,191.12,191.1,0.71]
[1753101905112,53.46468397,191.12,191.1,0.03]
[1753101905329,53.46468397,191.12,191.1,0.71]
[1753101906104,53.46468397,191.12,191.1,0.03]
[1753101906306,53.46468397,191.12,191.11,0.68]
[1753101906609,0.06,191.15,191.11,6.60054463]
[1753101906797,36.68,191.14,191.12,0.68]
[1753101907729,126.48,191.14,191.12,0.68]
[1753101908220,143.26468397,191.14,191.13,0.68]
[1753101908616,106.58468397,191.14,191.13,0.68]
[1753101908815,143.24468397,191.14,191.13,0.68]
[1753101909322,0.06,191.15,191.13,0.68]
[1753101909525,36.72,191.15,191.13,0.68]
[1753101909832,36.72,191.15,191.14,5.92054463]
[1753101910127,0.06,191.15,191.14,11.83231192]
[1753101913007,0.06,191.15,191.14,37.83231192]
[1753101916227,1e-08,191.15,191.14,37.83231192]
[1753101916605,0.06,191.18,191.17,26.0]
[1753101916809,0.06,191.18,191.17,39.97904463]
[1753101917014,0.06,191.18,191.17,40.65904463]
[1753101917324,0.06,191.19,191.17,40.65904463]
[1753101917502,0.06,191.19,191.18,6.60054463]
[1753101917920,0.06,191.19,191.18,11.83121729]
[1753101918815,0.06,191.19,191.18,0.68]
[1753101919013,0.06,191.19,191.17,11.15146058]
[1753101919212,0.06,191.19,191.18,6.60054463]
[1753101919933,0.06,191.19,191.18,11.83121729]
[1753101922832,0.06,191.19,191.18,5.91067266]
[1753101923133,0.06,191.19,191.18,11.83121729]
[1753101925219,0.06,191.19,191.18,5.23067266]
[1753101925424,0.06,191.19,191.18,6.60054463]
[1753101926822,0.06,191.19,191.18,11.83121729]
[1753101927622,0.06,191.22,191.21,26.0]
[1753101927929,0.06,191.22,191.21,31.92054463]
[1753101928239,0.06,191.22,191.21,32.60054463]
[1753101929135,0.06,191.22,191.21,37.83039662]
[1753101931214,0.06,191.22,191.21,31.90985199]
[1753101931414,0.06,191.22,191.21,37.83039662]
[1753101933033,0.06,191.23,191.21,37.83039662]
[1753101933214,0.06,191.23,191.22,43.24054463]
[1753101934040,0.06,191.23,191.22,47.4506309]
[1753101934944,0.06,191.23,191.22,52.68020939]
[1753101935239,0.06,191.24,191.22,52.68020939]
[1753101935433,0.06,191.24,191.23,32.60054463]
[1753101935944,0.1,191.26,191.23,32.60054463]
[1753101935945,0.1,191.26,191.25,26.0]
[1753101936117,1e-08,191.26,191.25,68.56054463]
[1753101936323,1e-08,191.26,191.25,69.24054463]
[1753101936924,1e-08,191.26,191.25,63.32]
[1753101937131,1e-08,191.26,191.25,74.46930279]
[1753101937845,1e-08,191.26,191.22,5.22957849]
[1753101938033,1e-08,191.26,191.25,5.92054463]
[1753101938430,1e-08,191.26,191.25,6.60054463]
[1753101939020,1e-08,191.26,191.25,11.82930279]
[1753101939534,0.06,191.28,191.27,26.0]
[1753101939744,5.0,191.29,191.27,74.48108926]
[1753101940048,5.0,191.29,191.28,12.52108926]
[1753101940951,5.0,191.29,191.28,6.60054463]
[1753101941245,5.0,191.29,191.28,11.82848273]
[1753101942727,5.0,191.29,191.27,26.0]
[1753101942944,5.0,191.29,191.28,5.92054463]
[1753101943142,5.67,191.29,191.28,5.92054463]
[1753101943335,5.67,191.29,191.27,5.92054463]
[1753101943535,5.67,191.29,191.28,5.92054463]
[1753101943742,5.67,191.29,191.27,5.92054463]
[1753101943929,5.67,191.29,191.26,5.22848478]
[1753101944128,5.67,191.29,191.27,5.92054463]
[1753101944953,5.67,191.29,191.26,5.22848478]
[1753101945248,0.67,191.28,191.23,62.62]
[1753101945440,0.67,191.28,191.24,5.92054463]
[1753101945632,5.0,191.29,191.24,5.92054463]
[1753101945835,0.67,191.27,191.24,5.92054463]
[1753101946043,0.67,191.27,191.25,5.92054463]
[1753101946746,5.67,191.29,191.25,5.92054463]
[1753101946949,5.67,191.29,191.23,31.90923578]
[1753101946950,0.67,191.28,191.23,31.90923578]
[1753101947144,0.67,191.28,191.25,5.92054463]
[1753101947952,5.0,191.29,191.23,31.90923578]
[1753101948160,5.92054463,191.25,191.18,0.68]
[1753101948343,5.92054463,191.25,191.19,5.92054463]
[1753101948538,0.67,191.26,191.21,5.92054463]
[1753101948741,0.67,191.26,191.21,6.60054463]
[1753101948950,5.92054463,191.27,191.21,0.68]
[1753101949145,5.92054463,191.27,191.21,5.92054463]
[1753101949146,0.67,191.25,191.21,5.92054463]
[1753101949352,6.59054463,191.27,191.21,6.60054463]
[1753101951161,6.59054463,191.27,191.22,5.22957849]
[1753101951347,0.67,191.26,191.22,5.22957849]
[1753101951546,6.59054463,191.26,191.22,5.22957849]
[1753101951748,0.67,191.25,191.22,5.22957849]
[1753101952147,6.59054463,191.27,191.22,5.22957849]
[1753101952344,0.67,191.26,191.22,5.22957849]
[1753101954042,0.67,191.26,191.22,11.83012312]
[1753101954244,0.67,191.27,191.22,11.83012312]
[1753101954852,38.2187,191.28,191.25,5.92054463]
[1753101955038,36.62,191.28,191.25,6.60054463]
[1753101955243,37.29,191.28,191.24,5.22895319]
[1753101955455,0.67,191.27,191.24,5.22895319]
[1753101955858,0.67,191.26,191.24,5.22895319]
[1753101956447,43.21054463,191.28,191.24,5.22895319]
[1753101956758,37.29,191.28,191.24,5.22895319]
[1753101956958,37.29,191.28,191.24,11.14949782]
[1753101957159,36.62,191.28,191.24,11.14949782]
[1753101957355,36.62,191.28,191.25,6.60054463]
[1753101957555,36.62,191.28,191.24,11.14949782]
[1753101957761,37.29,191.28,191.24,11.14949782]
[1753101957965,37.29,191.28,191.24,5.22895319]
[1753101958167,0.67,191.27,191.24,5.22895319]
[1753101958545,42.54054463,191.28,191.24,5.22895319]
[1753101958745,36.62,191.28,191.24,5.22895319]
[1753101959050,37.29,191.28,191.24,11.14949782]
[1753101959852,36.62,191.28,191.25,0.68]
[1753101960254,36.62,191.28,191.26,6.60054463]
[1753101960467,0.06,191.28,191.27,6.60054463]
[1753101961165,0.06,191.28,191.27,32.60054463]
[1753101961362,5.0,191.29,191.27,32.60054463]
[1753101961568,5.0,191.29,191.28,6.61054463]
[1753101961870,5.0,191.29,191.28,11.83848273]
[1753101962861,0.06,191.32,191.31,26.0]
[1753101963070,0.06,191.32,191.28,5.9179381]
[1753101963268,0.71,191.31,191.26,37.14902941]
[1753101963475,22.7652286,191.32,191.26,37.14902941]
[1753101963659,0.71,191.3,191.26,37.14902941]
[1753101963975,36.62,191.31,191.26,37.14902941]
[1753101963976,0.71,191.29,191.26,11.14902941]
[1753101965968,36.62,191.31,191.26,11.14902941]
[1753101966168,0.71,191.28,191.26,11.14902941]
[1753101966374,0.71,191.3,191.26,11.14902941]
[1753101966564,36.62,191.31,191.26,11.14902941]
[1753101966874,0.71,191.29,191.26,5.22848478]
[1753101967178,0.71,191.28,191.25,5.22874949]
[1753101967552,0.71,191.28,191.25,11.14929412]
[1753101967755,17.49468397,191.3,191.25,11.14929412]
[1753101967961,0.71,191.29,191.25,11.14929412]
[1753101968578,0.71,191.28,191.25,11.14929412]
[1753101968773,22.7052286,191.3,191.25,5.22874949]
[1753101968774,0.71,191.27,191.25,5.22874949]
[1753101970590,37.33,191.27,191.25,5.22874949]
[1753101970794,36.62,191.27,191.25,11.14929412]
[1753101971287,36.62,191.28,191.25,11.14929412]
[1753101971782,37.33,191.28,191.25,11.14929412]
[1753101971988,0.71,191.27,191.25,5.22874949]
[1753101973477,0.71,191.26,191.25,5.22874949]
[1753101973677,0.71,191.26,191.24,5.25903158]
[1753101974294,42.54054463,191.28,191.24,0.03]
[1753101974603,0.71,191.26,191.24,0.03]
[1753101974897,36.62,191.25,191.24,0.03]
[1753101975097,89.8,191.29,191.25,0.69]
[1753101975293,36.62,191.28,191.26,6.61054463]
[1753101975494,36.62,191.28,191.25,5.92054463]
[1753101975873,36.62,191.28,191.26,5.22848478]
[1753101977191,36.62,191.28,191.25,11.14930279]
[1753101977402,36.62,191.28,191.25,11.83930279]
[1753101977995,36.62,191.28,191.25,5.22875816]
[1753101978188,37.33,191.28,191.24,5.25894338]
[1753101978373,0.71,191.27,191.24,11.17948801]